bitfinex/quotes_SOLUSD_20251002
["timestamp","ask_amount","ask_price","bid_price","bid_amount"]
[1759369770622,1.86895582,222.82,222.77,0.2]
[1759369770790,0.67,222.81,222.77,0.2]
[1759369771888,1.86895582,222.82,222.77,4.68891364]
[1759369772195,5.15738515,222.85,222.77,5.29891364]
[1759369772406,7.02634097,222.85,222.77,5.29891364]
[1759369772793,0.67,222.89,222.8,20.8]
[1759369772985,0.67,222.89,222.81,32.97]
[1759369773381,21.12111578,222.92,222.81,32.36]
[1759369773585,0.67,222.88,222.81,32.36]
[1759369774614,2.53895582,222.88,222.81,36.84795072]
[1759369774799,0.67,222.88,222.81,36.84795072]
[1759369774994,2.53895582,222.88,222.81,36.84795072]
[1759369775201,0.67,222.88,222.81,36.84795072]
[1759369775401,6.35545213,222.9,222.81,37.45795072]
[1759369775598,9.90609963,222.92,222.82,0.61]
[1759369775819,9.90609963,222.92,222.84,20.8]
[1759369775992,9.90609963,222.92,222.85,0.61]
[1759369776315,16.93098644,222.92,222.86,32.42]
[1759369776525,6.35541002,222.9,222.86,32.42]
[1759369776690,0.67,222.89,222.86,32.42]
[1759369777091,12.44505545,222.92,222.86,32.42]
[1759369777614,16.93101804,222.92,222.86,32.42]
[1759369778124,2.53895582,222.91,222.86,32.42]
[1759369778620,5.15645275,222.9,222.83,32.4]
[1759369780097,14.39220147,222.92,222.84,0.61]
[1759369780316,17.31571217,222.92,222.84,0.61]
[1759369780518,17.31571217,222.92,222.84,5.09733676]
[1759369780694,9.90609963,222.92,222.85,0.61]
[1759369781109,14.39205149,222.92,222.84,4.48733676]
[1759369781419,15.06205149,222.92,222.87,2.92325313]
[1759369781595,0.67,222.91,222.87,2.92325313]
[1759369781793,14.39205149,222.92,222.87,2.92325313]
[1759369781997,0.67,222.9,222.86,2.92325313]
[1759369782528,4.48624582,222.91,222.85,35.28325313]
[1759369782529,0.67,222.89,222.85,35.28325313]
[1759369783401,0.67,222.89,222.85,32.36]
[1759369783602,3.59325313,222.89,222.85,32.34]
[1759369784713,5.15671931,222.88,222.81,5.09812889]
[1759369785028,2.92325313,222.86,222.8,35.26325313]
[1759369785235,4.48671931,222.88,222.8,35.26325313]
[1759369785236,0.67,222.85,222.8,35.26325313]
[1759369785525,0.67,222.84,222.8,35.26325313]
[1759369786038,0.67,222.83,222.8,32.34]
[1759369786204,2.92325313,222.81,222.77,0.2]
[1759369786621,3.59325313,222.81,222.77,0.2]
[1759369786816,8.08157342,222.81,222.77,0.2]
[1759369787324,7.41157342,222.81,222.77,0.2]
[1759369787621,0.67,222.8,222.77,0.2]
[1759369788199,5.15787314,222.83,222.77,0.2]
[1759369788421,3.59325313,222.81,222.77,0.2]
[1759369788625,2.92325313,222.8,222.77,0.2]
[1759369788811,4.4885318,222.79,222.77,0.2]
[1759369789008,2.92325313,222.78,222.77,0.2]
[1759369789205,3.59325313,222.78,222.77,0.2]
[1759369790337,14.46972834,222.78,222.77,0.2]
[1759369790629,14.46972834,222.78,222.75,0.2]
[1759369790630,10.87647521,222.77,222.75,0.2]
[1759369790799,4.49014413,222.71,222.56,3.60325313]
[1759369791004,4.49014413,222.71,222.54,11.23375415]
[1759369791005,2.92325313,222.67,222.6,2.92325313]
[1759369791234,2.92325313,222.67,222.58,32.32]
[1759369791235,0.67,222.67,222.58,32.32]
[1759369791414,0.67,222.67,222.6,2.92325313]
[1759369791616,0.67,222.67,222.62,2.92325313]
[1759369791921,0.67,222.67,222.61,9.92325313]
[1759369792936,5.1611012,222.67,222.61,7.0]
[1759369793136,3.59325313,222.74,222.62,0.68]
[1759369793334,3.59325313,222.74,222.67,2.92325313]
[1759369793827,2.92325313,222.74,222.66,2.92325313]
[1759369794032,2.92325313,222.71,222.65,32.3]
[1759369794324,7.91326877,222.71,222.65,32.3]
[1759369794624,7.25326877,222.69,222.61,39.28]
[1759369794803,7.25326877,222.67,222.61,39.28]
[1759369795009,7.25326877,222.65,222.61,39.28]
[1759369795230,15.71554329,222.71,222.61,7.0]
[1759369795231,10.87647521,222.7,222.61,7.0]
[1759369795432,0.66,222.65,222.61,7.0]
[1759369795940,0.66,222.64,222.61,7.0]
[1759369796418,5.15157136,222.64,222.61,7.0]
[1759369796814,0.66,222.64,222.61,7.0]
[1759369797207,4.49134061,222.66,222.61,7.0]
[1759369797412,0.66,222.65,222.61,7.0]
[1759369798120,0.66,222.65,222.61,14.25326877]
[1759369798316,7.25326877,222.67,222.61,12.17211892]
[1759369798533,7.25326877,222.67,222.61,19.42538769]
[1759369798714,7.91326877,222.7,222.63,7.25326877]
[1759369798910,7.25326877,222.69,222.62,7.93326877]
[1759369799423,7.91326877,222.68,222.62,7.25326877]
[1759369799918,0.66,222.68,222.62,7.25326877]
[1759369800337,7.91326877,222.68,222.62,7.25326877]
[1759369800543,7.91326877,222.68,222.61,7.0]
[1759369800720,7.91326877,222.68,222.62,7.25326877]
[1759369801535,7.25326877,222.66,222.61,7.0]
[1759369801738,0.66,222.65,222.61,7.0]
[1759369802820,5.15153399,222.65,222.61,7.0]
[1759369803235,12.4033587,222.72,222.62,0.68]
[1759369803426,0.66,222.72,222.68,7.25326877]
[1759369803625,4.48968387,222.74,222.68,7.25326877]
[1759369804328,0.66,222.75,222.7,7.25326877]
[1759369804532,16.02581583,222.75,222.7,7.25326877]
[1759369804918,4.48910078,222.77,222.71,7.25326877]
[1759369805118,11.88181056,222.79,222.73,7.25326877]
[1759369805119,5.14866991,222.79,222.73,7.25326877]
[1759369805431,4.48866991,222.79,222.74,7.25326877]
[1759369805734,4.48838838,222.8,222.76,7.25326877]
[1759369806234,4.48838838,222.8,222.75,7.25326877]
[1759369806420,12.40066878,222.85,222.78,7.25326877]
[1759369806623,7.91326877,222.85,222.79,7.25326877]
[1759369806826,32.92,222.89,222.81,7.25326877]
[1759369807026,7.25326877,222.88,222.82,7.25326877]
[1759369807329,7.25326877,222.88,222.72,7.25326877]
[1759369807330,7.25326877,222.84,222.76,0.68]
[1759369807534,7.25326877,222.82,222.77,32.28]
[1759369807738,7.91326877,222.82,222.77,32.28]
[1759369807941,7.91326877,222.82,222.76,7.93326877]
[1759369808116,7.91326877,222.82,222.77,32.28]
[1759369808320,0.66,222.82,222.77,32.28]
[1759369808538,0.66,222.82,222.76,7.25326877]
[1759369808838,5.14795418,222.82,222.77,7.25326877]
[1759369809040,0.66,222.81,222.76,7.25326877]
[1759369809230,7.91326877,222.8,222.67,11.22731951]
[1759369809535,7.25326877,222.76,222.7,7.25326877]
[1759369809835,7.25326877,222.76,222.7,39.53326877]
[1759369810012,36.50777286,222.82,222.75,7.25326877]
[1759369810013,7.25326877,222.81,222.75,7.25326877]
[1759369810215,7.25326877,222.79,222.73,7.25326877]
[1759369810440,7.25326877,222.77,222.71,7.25326877]
[1759369810736,7.25326877,222.75,222.7,32.3]
[1759369810913,0.66,222.75,222.7,32.3]
[1759369811238,4.48886499,222.78,222.72,7.25326877]
[1759369811438,4.48886499,222.78,222.71,0.68]
[1759369811605,7.25326877,222.8,222.74,7.25326877]
[1759369811606,4.48842578,222.8,222.74,7.25326877]
[1759369812030,7.25326877,222.78,222.72,7.25326877]
[1759369812232,0.66,222.79,222.72,7.25326877]
[1759369812233,0.66,222.79,222.73,32.3]
[1759369812438,7.25326877,222.78,222.73,32.3]
[1759369812615,4.48893477,222.77,222.73,32.3]
[1759369812811,7.91326877,222.76,222.7,39.55326877]
[1759369813320,4.4887499,222.78,222.7,7.25326877]
[1759369813527,4.4887499,222.78,222.72,7.25326877]
[1759369813838,11.74180057,222.79,222.72,7.25326877]
[1759369814141,7.25326877,222.81,222.74,7.25326877]
[1759369814315,7.25326877,222.81,222.75,7.25326877]
[1759369814517,88.07467268,222.82,222.75,7.25326877]
[1759369814717,4.48812889,222.81,222.75,7.25326877]
[1759369814939,4.48812889,222.81,222.71,53.12]
[1759369814940,7.25326877,222.84,222.77,7.25326877]
[1759369815241,7.25326877,222.84,222.78,7.25326877]
[1759369815242,11.74079345,222.84,222.78,7.25326877]
[1759369815721,7.25326877,222.82,222.75,7.25326877]
[1759369815920,7.25326877,222.8,222.74,39.57326877]
[1759369816119,7.25326877,222.81,222.74,39.57326877]
[1759369816322,7.91326877,222.81,222.74,39.57326877]
[1759369816548,0.66,222.81,222.75,7.25326877]
[1759369816732,7.91326877,222.83,222.76,7.25326877]
[1759369817413,0.66,222.83,222.76,7.25326877]
[1759369817617,11.74112957,222.83,222.77,7.25326877]
[1759369817945,4.4878608,222.83,222.78,7.25326877]
[1759369818457,5.1478608,222.83,222.76,0.68]
[1759369818663,5.1478608,222.83,222.77,7.25326877]
[1759369820163,12.40112957,222.83,222.77,7.25326877]
[1759369820343,12.40112957,222.83,222.76,0.68]
[1759369820541,7.25326877,222.82,222.76,7.25326877]
[1759369820867,7.25326877,222.82,222.75,39.53326877]
[1759369821065,11.2188117,222.84,222.78,7.25326877]
[1759369821066,0.66,222.84,222.78,7.25326877]
[1759369821268,10.87647521,222.86,222.76,39.53326877]
[1759369821269,7.91326877,222.83,222.76,39.53326877]
[1759369821456,7.91326877,222.82,222.76,39.53326877]
[1759369821642,0.66,222.81,222.73,25.98973809]
[1759369821848,0.66,222.81,222.75,7.25326877]
[1759369822260,5.14828267,222.81,222.75,7.25326877]
[1759369822444,5.14828267,222.81,222.74,36.78951703]
[1759369822640,5.14828267,222.81,222.75,7.25326877]
[1759369823170,7.25326877,222.76,222.68,7.25326877]
[1759369823346,0.66,222.76,222.68,0.7]
[1759369823546,7.25326877,222.75,222.69,7.25326877]
[1759369823846,0.71,222.79,222.67,57.59093774]
[1759369824062,7.25326877,222.77,222.71,7.25326877]
[1759369824269,11.74226331,222.77,222.71,7.25326877]
[1759369825047,4.48899454,222.77,222.73,7.25326877]
[1759369825352,53.12,222.84,222.76,7.25326877]
[1759369825353,7.25326877,222.83,222.76,7.25326877]
[1759369825650,43.60543034,222.84,222.77,7.25326877]
[1759369825880,30.05869911,222.84,222.77,7.25326877]
[1759369826064,7.25326877,222.83,222.75,0.7]
[1759369826268,11.74119189,222.83,222.77,7.25326877]
[1759369826769,4.48792312,222.83,222.77,7.25326877]
[1759369826950,7.25326877,222.81,222.75,7.25326877]
[1759369827151,7.96326877,222.8,222.75,32.32]
[1759369827350,15.70723829,222.83,222.75,32.32]
[1759369827351,7.25326877,222.81,222.75,32.32]
[1759369827573,15.70723829,222.83,222.75,32.32]
[1759369827574,7.96326877,222.82,222.76,7.25326877]
[1759369828160,4.48812889,222.81,222.76,7.25326877]
[1759369828962,5.19812889,222.81,222.76,7.25326877]
[1759369829356,7.25326877,222.82,222.76,7.95326877]
[1759369829578,12.45116722,222.83,222.76,7.95326877]
[1759369830073,12.45116722,222.83,222.76,7.25326877]
[1759369830464,7.25326877,222.82,222.76,7.25326877]
[1759369830657,5.19789845,222.83,222.72,4.48977896]
[1759369830658,7.25326877,222.8,222.72,4.48977896]
[1759369830976,7.96326877,222.79,222.73,39.55326877]
[1759369831346,0.71,222.79,222.73,39.55326877]
[1759369831880,4.48873327,222.78,222.73,7.25326877]
[1759369832067,5.19873327,222.78,222.73,39.55326877]
[1759369832260,4.48837867,222.8,222.74,7.95326877]
[1759369832460,4.48837867,222.8,222.76,7.25326877]
[1759369833373,0.71,222.8,222.76,7.25326877]
[1759369833679,7.25326877,222.78,222.73,32.28]
[1759369833880,0.71,222.77,222.73,32.28]
[1759369835158,5.19899242,222.77,222.73,32.28]
[1759369835477,0.71,222.77,222.73,32.28]
[1759369836282,5.19899706,222.77,222.73,32.28]
[1759369836580,11.22032224,222.81,222.74,2.92708739]
[1759369836581,0.71,222.8,222.74,2.92708739]
[1759369836879,2.92708739,222.79,222.73,35.90708739]
[1759369837390,5.19873327,222.78,222.73,2.92708739]
[1759369837558,2.92708739,222.76,222.7,32.26]
[1759369837753,0.71,222.75,222.7,32.26]
[1759369838070,18.63765385,222.78,222.71,3.62708739]
[1759369838256,8.12582066,222.78,222.71,3.62708739]
[1759369838456,5.19873327,222.78,222.72,2.92708739]
[1759369839077,8.12582066,222.78,222.71,3.62708739]
[1759369839388,8.12582066,222.78,222.7,32.26]
[1759369839389,3.63708739,222.77,222.7,32.26]
[1759369839588,2.92708739,222.73,222.67,20.8]
[1759369839883,2.92708739,222.75,222.68,35.86708739]
[1759369840054,10.87647521,222.76,222.68,35.86708739]
[1759369840252,2.92708739,222.75,222.68,35.86708739]
[1759369840678,0.71,222.74,222.68,35.16708739]
[1759369841064,4.48974094,222.73,222.68,32.24]
[1759369841463,5.19974094,222.73,222.68,32.24]
[1759369841664,0.71,222.72,222.68,32.24]
[1759369841866,4.48974094,222.73,222.68,32.24]
[1759369842287,5.19974094,222.73,222.68,32.24]
[1759369843583,5.19974094,222.73,222.67,22.67414861]
[1759369843584,5.19974094,222.73,222.67,1.87414861]
[1759369843762,5.19974094,222.73,222.68,32.24]
[1759369844977,0.71,222.72,222.68,32.24]
[1759369845183,0.71,222.71,222.68,32.24]
[1759369845378,1.87414861,222.72,222.68,32.24]
[1759369845563,1.87414861,222.72,222.68,32.2]
[1759369845564,2.58414861,222.72,222.68,32.2]
[1759369845767,0.71,222.71,222.68,32.2]
[1759369845991,5.20034575,222.7,222.62,5.19180329]
[1759369846198,7.07449436,222.7,222.63,34.07414861]
[1759369846375,16.42621014,222.7,222.63,34.07414861]
[1759369846574,18.30035875,222.7,222.63,34.07414861]
[1759369846783,18.30035875,222.7,222.63,32.2]
[1759369846984,18.30035875,222.7,222.63,34.07414861]
[1759369847180,16.42621014,222.7,222.63,32.2]
[1759369847492,16.42621014,222.7,222.63,34.07414861]
[1759369847689,15.71621014,222.7,222.64,0.7]
[1759369847890,17.59035875,222.7,222.64,0.7]
[1759369848077,11.22586439,222.7,222.64,0.7]
[1759369848284,13.810013,222.7,222.63,34.07414861]
[1759369848489,0.71,222.69,222.63,32.2]
[1759369848700,0.71,222.69,222.63,34.07414861]
[1759369849305,6.36429274,222.71,222.64,2.57414861]
[1759369849607,4.49014413,222.71,222.67,1.87414861]
[1759369849810,4.48992449,222.73,222.69,1.87414861]
[1759369850015,4.48992449,222.73,222.68,0.7]
[1759369850178,0.71,222.73,222.67,32.18]
[1759369850378,0.71,222.73,222.67,34.05414861]
[1759369850680,0.71,222.73,222.68,1.87414861]
[1759369851578,0.71,222.73,222.69,32.16]
[1759369851793,4.48953937,222.74,222.64,25.29149275]
[1759369851998,4.48953937,222.74,222.7,1.87414861]
[1759369852198,4.48953937,222.74,222.71,0.7]
[1759369852408,4.48953937,222.74,222.7,34.03414861]
[1759369852593,5.19953937,222.74,222.7,32.16]
[1759369854584,0.71,222.73,222.7,32.16]
[1759369854901,17.58753641,222.74,222.7,32.16]
[1759369855406,16.4233878,222.74,222.7,32.16]
[1759369855590,4.48953937,222.74,222.7,32.14]
[1759369855798,0.71,222.73,222.7,32.14]
[1759369856309,4.48994252,222.72,222.7,32.14]
[1759369856681,4.48963455,222.74,222.7,32.14]
[1759369856992,4.48963455,222.74,222.7,32.85]
[1759369857486,4.48963455,222.74,222.7,32.14]
[1759369857886,2.58414861,222.73,222.7,32.14]
[1759369858208,4.48963455,222.74,222.62,0.71]
[1759369858209,1.87414861,222.71,222.62,0.71]
[1759369858514,0.71,222.72,222.61,9.58414861]
[1759369858515,4.49095073,222.67,222.61,9.58414861]
[1759369858687,4.49095073,222.67,222.62,2.58414861]
[1759369858877,4.49095073,222.67,222.62,0.71]
[1759369859717,4.49062583,222.69,222.63,32.87]
[1759369860407,7.07477444,222.69,222.63,32.87]
[1759369860977,4.49062583,222.69,222.63,34.74414861]
[1759369861711,6.36477444,222.69,222.63,32.87]
[1759369861887,6.36477444,222.69,222.63,0.71]
[1759369862082,6.36477444,222.69,222.64,32.16]
[1759369862290,7.07477444,222.69,222.64,32.16]
[1759369863024,1.87414861,222.67,222.64,32.16]
[1759369863221,2.58414861,222.67,222.64,32.16]
[1759369863892,0.71,222.66,222.63,32.14]
[1759369864402,5.20128208,222.66,222.63,32.14]
[1759369865708,4.49128208,222.66,222.63,32.14]
[1759369865885,7.07499584,222.68,222.63,32.14]
[1759369866217,0.71,222.68,222.63,32.85]
[1759369866411,4.49095073,222.67,222.63,32.14]
[1759369866716,1.87414861,222.64,222.61,7.0]
[1759369866902,2.58414861,222.63,222.61,7.0]
[1759369867101,2.58414861,222.62,222.61,7.0]
[1759369868295,7.076108,222.62,222.61,7.0]
[1759369868693,17.95258321,222.62,222.61,7.0]
[1759369868896,16.0784346,222.62,222.61,7.0]
[1759369869314,4.49135414,222.65,222.61,7.0]
[1759369869513,1.87414861,222.68,222.64,1.87414861]
[1759369869514,15.36722426,222.68,222.64,1.87414861]
[1759369869720,0.71,222.67,222.65,1.87414861]
[1759369869898,0.71,222.67,222.62,0.71]
[1759369869899,0.71,222.66,222.63,1.87414861]
[1759369870103,0.71,222.65,222.61,39.14]
[1759369870327,4.49155587,222.64,222.63,1.87414861]
[1759369870504,5.20155587,222.64,222.61,7.0]
[1759369870695,0.71,222.63,222.61,8.87414861]
[1759369870896,0.71,222.63,222.61,7.0]
[1759369871122,0.71,222.62,222.61,7.0]
[1759369872432,17.95258321,222.62,222.61,7.0]
[1759369873107,17.95258321,222.62,222.55,0.2]
[1759369873108,10.87647521,222.61,222.55,0.2]
[1759369873326,10.87647521,222.58,222.55,0.2]
[1759369873819,10.87647521,222.61,222.56,1.87414861]
[1759369874121,10.87647521,222.61,222.58,1.87414861]
[1759369874418,5.20236298,222.6,222.55,0.2]
[1759369874606,16.43327043,222.6,222.55,2.07414861]
[1759369874806,0.71,222.59,222.55,2.07414861]
[1759369875128,0.71,222.58,222.55,0.2]
[1759369875333,10.87647521,222.56,222.55,0.2]
[1759369875828,13.46062382,222.56,222.55,0.2]
[1759369876008,11.58647521,222.56,222.55,0.2]
[1759369876210,10.87647521,222.58,222.55,2.07414861]
[1759369876436,10.87647521,222.58,222.56,1.87414861]
[1759369876601,0.71,222.59,222.56,1.87414861]
[1759369876808,11.23090745,222.6,222.57,1.87414861]
[1759369877106,5.2025648,222.59,222.55,0.2]
[1759369877313,5.2025648,222.59,222.57,1.87414861]
[1759369877530,10.87647521,222.62,222.57,1.87414861]
[1759369877823,10.87647521,222.62,222.55,0.2]
[1759369877824,4.49175762,222.63,222.61,1.87414861]
[1759369878013,5.20175762,222.63,222.58,0.71]
[1759369878203,36.73151751,222.65,222.59,0.71]
[1759369878408,36.73151751,222.65,222.62,1.87414861]
[1759369878625,4.49175762,222.63,222.61,1.87414861]
[1759369878800,4.49175762,222.63,222.6,1.87414861]
[1759369879126,0.71,222.62,222.6,1.87414861]
[1759369879293,4.49175762,222.63,222.59,1.87414861]
[1759369879498,16.43115168,222.63,222.59,1.87414861]
[1759369880300,0.71,222.62,222.59,1.87414861]
[1759369881237,4.49216117,222.61,222.59,1.87414861]
[1759369881914,4.49216117,222.61,222.55,33.17]
[1759369882230,5.19216117,222.61,222.58,1.87414861]
[1759369883227,5.19216117,222.61,222.55,0.91]
[1759369883228,4.49175762,222.63,222.59,1.87414861]
[1759369883529,4.49175762,222.63,222.6,1.87414861]
[1759369883530,5.19175762,222.63,222.6,1.87414861]
[1759369883724,32.74661455,222.69,222.62,1.87414861]
[1759369883906,4.49074905,222.68,222.67,1.87414861]
[1759369884103,4.49074905,222.68,222.62,0.67]
[1759369884104,4.49074905,222.68,222.65,1.87414861]
[1759369884419,0.72,222.67,222.64,1.87414861]
[1759369884797,0.72,222.66,222.64,1.87414861]
[1759369885242,0.72,222.66,222.61,32.22]
[1759369885243,4.49135414,222.65,222.61,32.22]
[1759369885524,4.49135414,222.65,222.63,1.87414861]
[1759369885837,4.49110084,222.67,222.63,1.87414861]
[1759369886033,5.21110084,222.67,222.63,1.87414861]
[1759369886934,0.72,222.66,222.62,1.87414861]
[1759369887432,4.49135414,222.65,222.62,1.87414861]
[1759369888116,0.72,222.64,222.58,0.67]
[1759369888312,0.72,222.64,222.61,1.87414861]
[1759369888920,4.49135414,222.65,222.61,1.87414861]
[1759369889129,4.49135414,222.65,222.63,1.87414861]
[1759369889429,4.49115242,222.66,222.63,1.87414861]
[1759369889634,5.21115242,222.66,222.63,1.87414861]
[1759369890406,0.72,222.65,222.57,32.87]
[1759369890611,0.72,222.65,222.57,0.67]
[1759369890826,0.72,222.65,222.6,1.87414861]
[1759369891030,0.72,222.64,222.6,1.87414861]
[1759369891239,4.49175762,222.63,222.57,0.67]
[1759369891422,4.49175762,222.63,222.61,1.87414861]
[1759369892124,4.49175762,222.63,222.57,0.67]
[1759369892737,4.49175762,222.63,222.61,1.87414861]
[1759369893040,4.49148404,222.65,222.62,1.87414861]
[1759369893205,4.49148404,222.65,222.61,0.67]
[1759369893206,88.13467268,222.69,222.64,1.87414861]
[1759369893412,87.41467268,222.69,222.68,1.87414861]
[1759369893637,10.12177952,222.7,222.68,1.87414861]
[1759369893814,10.12177952,222.7,222.69,1.87414861]
[1759369895134,10.12177952,222.7,222.69,2.54414861]
[1759369895713,10.87647521,222.79,222.69,7.03468517]
[1759369895714,4.48923903,222.76,222.69,7.03468517]
[1759369896036,0.72,222.75,222.7,1.87414861]
[1759369896241,0.72,222.74,222.7,1.87414861]
[1759369896426,4.48923903,222.76,222.71,1.87414861]
[1759369896625,0.72,222.75,222.72,1.87414861]
[1759369896872,10.87647521,222.73,222.69,1.87414861]
[1759369897146,10.87647521,222.73,222.68,1.87414861]
[1759369897147,0.72,222.72,222.68,1.87414861]
[1759369897312,10.87647521,222.73,222.68,1.87414861]
[1759369897518,10.87647521,222.73,222.69,1.87414861]
[1759369897828,0.72,222.72,222.69,1.87414861]
[1759369898037,0.72,222.71,222.67,1.87414861]
[1759369898233,0.72,222.7,222.66,32.18]
[1759369898443,1.87414861,222.67,222.56,0.67]
[1759369898639,0.72,222.66,222.6,1.87414861]
[1759369898941,10.87647521,222.68,222.55,0.2]
[1759369898942,10.87647521,222.64,222.55,0.2]
[1759369899245,10.87647521,222.64,222.6,1.87414861]
[1759369899418,10.87647521,222.64,222.55,37.54333213]
[1759369899419,10.87647521,222.64,222.61,1.87414861]
[1759369899619,0.72,222.63,222.59,1.87414861]
[1759369900121,10.87647521,222.64,222.59,1.87414861]
[1759369900122,0.72,222.62,222.59,1.87414861]
[1759369900329,0.72,222.62,222.55,33.05]
[1759369900330,0.72,222.61,222.58,1.87414861]
[1759369900734,4.49213595,222.62,222.59,1.87414861]
[1759369901238,5.21213595,222.62,222.59,1.87414861]
[1759369902226,0.72,222.61,222.55,33.05]
[1759369902530,0.72,222.61,222.58,1.87414861]
[1759369902729,0.72,222.61,222.57,1.87414861]
[1759369902938,4.49236298,222.6,222.58,1.87414861]
[1759369903245,10.87647521,222.64,222.58,1.87414861]
[1759369903447,10.87647521,222.64,222.59,1.87414861]
[1759369903746,0.72,222.63,222.59,1.87414861]
[1759369904041,4.49155587,222.64,222.61,1.87414861]
[1759369904244,4.49155587,222.64,222.61,2.93040954]
[1759369904424,0.72,222.63,222.59,2.93040954]
[1759369904626,0.72,222.62,222.55,32.38]
[1759369904829,5.21211471,222.62,222.59,2.93040954]
[1759369905227,4.49171402,222.64,222.6,2.93040954]
[1759369905744,4.49171402,222.64,222.62,2.93040954]
[1759369906550,0.72,222.66,222.62,2.93040954]
[1759369906735,5.21135414,222.65,222.61,2.93040954]
[1759369907942,4.49135414,222.65,222.62,2.93040954]
[1759369908115,11.59647521,222.68,222.63,2.93040954]
[1759369908316,4.49054739,222.69,222.67,2.93040954]
[1759369908543,5.21054739,222.69,222.67,2.93040954]
[1759369908954,5.21054739,222.69,222.66,2.93040954]
[1759369909320,5.21054739,222.69,222.67,2.93040954]
[1759369909736,15.71691588,222.69,222.63,0.67]
[1759369909953,0.72,222.68,222.66,2.93040954]
[1759369910445,15.71691588,222.69,222.65,2.93040954]
[1759369910623,15.71691588,222.69,222.63,0.67]
[1759369910624,15.71691588,222.69,222.66,2.93040954]
[1759369910821,11.22636849,222.69,222.67,2.93040954]
[1759369911018,11.22636849,222.69,222.61,32.14]
[1759369911019,11.22636849,222.69,222.66,2.93040954]
[1759369911221,0.72,222.68,222.66,2.93040954]
[1759369911451,11.22636849,222.69,222.67,2.93040954]
[1759369911755,4.49034575,222.7,222.67,2.93040954]
[1759369912053,4.49034575,222.7,222.63,0.67]
[1759369912054,4.49034575,222.7,222.69,2.93040954]
[1759369912843,15.71479884,222.72,222.68,2.93040954]
[1759369913146,16.43479884,222.72,222.68,2.93040954]
[1759369913449,0.72,222.71,222.68,2.93040954]
[1759369914848,4.49034575,222.7,222.68,2.93040954]
[1759369915264,5.16034575,222.7,222.63,32.12]
[1759369915559,5.16034575,222.7,222.68,2.93040954]
[1759369915729,4.49034575,222.7,222.68,2.93040954]
[1759369916052,0.67,222.69,222.62,20.8]
[1759369916250,0.67,222.69,222.61,32.1]
[1759369916251,13.80688475,222.68,222.61,32.1]
[1759369916453,10.87647521,222.66,222.61,35.03040954]
[1759369916754,0.67,222.65,222.62,2.93040954]
[1759369916947,4.49155587,222.64,222.62,2.93040954]
[1759369917123,4.49155587,222.64,222.61,35.03040954]
[1759369917631,4.49155587,222.64,222.61,32.1]
[1759369917841,15.72044555,222.64,222.61,32.1]
[1759369918146,16.39044555,222.64,222.61,32.1]
[1759369918739,16.39044555,222.64,222.61,35.03040954]
[1759369919850,15.72044555,222.64,222.61,35.03040954]
[1759369920025,11.22888968,222.64,222.61,2.93040954]
[1759369920225,11.89888968,222.64,222.6,2.93040954]
[1759369920754,4.49135414,222.65,222.62,2.93040954]
[1759369920930,4.49112109,222.67,222.64,2.93040954]
[1759369921125,4.49112109,222.67,222.65,2.93040954]
[1759369921651,4.49112109,222.67,222.66,2.93040954]
[1759369922228,4.49112109,222.67,222.63,0.72]
[1759369922440,4.49112109,222.67,222.66,2.93040954]
[1759369923052,21.47,222.71,222.66,2.93040954]
[1759369923256,20.8,222.71,222.64,0.72]
[1759369923442,0.67,222.7,222.69,2.93040954]
[1759369924154,5.16035623,222.7,222.68,2.93040954]
[1759369924447,11.54647521,222.69,222.59,0.72]
[1759369924632,10.87647521,222.67,222.61,2.93040954]
[1759369924843,0.67,222.66,222.57,32.06]
[1759369925160,14.47688475,222.65,222.58,2.93040954]
[1759369925452,10.87647521,222.63,222.58,2.93040954]
[1759369925836,0.67,222.62,222.56,0.72]
[1759369926038,0.67,222.62,222.58,2.93040954]
[1759369926438,4.49216117,222.61,222.58,2.93040954]
[1759369928226,4.49216117,222.61,222.59,2.93040954]
[1759369928563,15.72145321,222.63,222.59,2.93040954]
[1759369928745,0.67,222.62,222.59,2.93040954]
[1759369929565,4.49216117,222.61,222.59,2.93040954]